bitfinex/quotes_SOLUSD_20251218
["timestamp","ask_amount","ask_price","bid_price","bid_amount"]
[1766023641323,10.43767296,124.05,124.02,0.67]
[1766023641732,0.65,124.06,124.02,8.73309175]
[1766023641915,21.65074825,124.06,124.02,0.67]
[1766023642102,9.49,124.09,124.03,0.67]
[1766023642306,0.1,124.12,124.06,0.67]
[1766023642522,11.21307529,124.1,124.07,0.67]
[1766023642724,0.65,124.1,124.04,0.67]
[1766023642927,10.56307529,124.08,124.04,0.67]
[1766023643308,11.21307529,124.08,124.04,0.67]
[1766023643508,11.21307529,124.09,124.05,0.67]
[1766023644235,0.65,124.09,124.05,0.67]
[1766023644444,11.21307529,124.09,124.05,0.67]
[1766023644606,10.56307529,124.08,124.05,0.67]
[1766023645813,11.21307529,124.06,124.0,10.56307529]
[1766023646013,10.56307529,124.02,123.97,10.56307529]
[1766023646221,11.21307529,124.0,123.96,0.67]
[1766023649132,10.56307529,124.0,123.97,0.67]
[1766023650438,11.21307529,124.0,123.97,0.67]
[1766023651542,10.56307529,123.99,123.96,0.67]
[1766023652142,11.21307529,123.99,123.96,0.67]
[1766023652948,10.56307529,123.99,123.96,0.67]
[1766023653443,11.21307529,123.99,123.95,8.80994492]
[1766023653644,10.56307529,123.98,123.95,9.47994492]
[1766023653948,11.21307529,123.99,123.95,9.47994492]
[1766023654346,0.65,124.06,123.99,0.67]
[1766023654527,11.21307529,124.06,124.02,0.67]
[1766023654725,21.65074825,124.06,124.02,0.67]
[1766023655028,10.56307529,124.06,124.02,0.67]
[1766023655229,10.43767296,124.06,124.03,0.67]
[1766023655852,21.00074825,124.06,124.03,0.67]
[1766023656050,21.00074825,124.06,124.01,19.37302021]
[1766023656230,11.21307529,124.05,124.01,9.47994492]
[1766023656432,10.56307529,124.04,123.99,0.67]
[1766023656635,11.21307529,124.03,123.99,0.67]
[1766023656830,10.56307529,124.01,123.98,0.67]
[1766023657167,0.65,124.04,124.0,0.67]
[1766023657340,10.56307529,124.03,124.0,0.67]
[1766023657840,11.21307529,124.02,123.98,0.67]
[1766023658038,10.56307529,124.01,123.96,28.21302021]
[1766023658232,11.21307529,124.01,123.96,8.80994492]
[1766023658432,10.56307529,124.0,123.97,0.67]
[1766023658638,11.21307529,124.0,123.95,36.28042777]
[1766023658849,11.21307529,124.0,123.96,0.67]
[1766023659245,10.56307529,123.99,123.96,0.67]
[1766023660860,11.21307529,124.0,123.96,0.67]
[1766023661458,0.65,124.0,123.96,0.67]
[1766023661760,10.56307529,123.99,123.96,0.67]
[1766023661930,11.24307529,123.98,123.94,0.71]
[1766023663262,11.24307529,123.97,123.93,0.71]
[1766023663865,11.24307529,123.97,123.93,8.77904267]
[1766023664026,0.68,123.99,123.94,0.71]
[1766023664226,10.56307529,123.97,123.94,0.71]
[1766023664426,10.56307529,123.97,123.92,28.21302021]
[1766023664664,11.24307529,123.97,123.93,0.71]
[1766023665034,10.56307529,123.97,123.93,8.06904749]
[1766023665257,10.56307529,123.97,123.94,0.71]
[1766023667250,11.24307529,123.97,123.94,0.71]
[1766023667651,0.68,123.97,123.94,0.71]
[1766023667849,10.56307529,123.98,123.94,0.71]
[1766023668156,11.24307529,123.99,123.94,0.71]
[1766023668358,11.24307529,123.98,123.94,0.71]
[1766023670665,0.68,123.98,123.94,0.71]
[1766023670832,10.56307529,123.99,123.95,0.71]
[1766023671032,10.56307529,123.99,123.9,10.43767296]
[1766023671033,10.56307529,123.99,123.93,8.06899563]
[1766023671242,49.05796649,124.06,123.94,0.71]
[1766023671243,11.24307529,123.98,123.94,0.71]
[1766023672354,10.56307529,123.99,123.95,0.71]
[1766023674042,21.00074825,123.99,123.95,0.71]
[1766023674240,10.43767296,123.99,123.95,0.71]
[1766023674653,11.11767296,123.99,123.95,0.71]
[1766023674838,21.68074825,123.99,123.95,0.71]
[1766023675941,21.68074825,123.98,123.95,0.71]
[1766023676146,21.68074825,123.98,123.94,9.51994492]
[1766023676460,10.56307529,123.97,123.94,0.71]
[1766023676639,11.24307529,123.97,123.94,0.71]
[1766023676835,10.56307529,123.95,123.88,20.17975339]
[1766023677043,11.24307529,123.93,123.89,0.71]
[1766023677256,10.56307529,123.94,123.9,0.71]
[1766023677560,11.24307529,123.94,123.9,0.71]
[1766023679371,10.56307529,123.93,123.9,0.71]
[1766023680056,10.56307529,123.93,123.89,0.71]
[1766023680367,11.24307529,123.93,123.89,0.71]
[1766023680561,10.56307529,123.92,123.89,0.71]
[1766023680761,11.24307529,123.91,123.87,0.71]
[1766023681262,10.56307529,123.91,123.87,0.71]
[1766023681640,11.24307529,123.91,123.87,0.71]
[1766023682042,11.24307529,123.88,123.86,0.2]
[1766023682263,10.56307529,123.87,123.81,18.63975135]
[1766023682453,11.24307529,123.86,123.82,9.51994492]
[1766023683167,11.24307529,123.85,123.81,0.71]
[1766023683346,10.56307529,123.83,123.8,0.71]
[1766023684266,10.56307529,123.85,123.81,0.71]
[1766023684561,20.10307529,123.86,123.82,0.71]
[1766023685466,20.10307529,123.86,123.8,0.71]
[1766023685467,11.24307529,123.84,123.8,0.71]
[1766023685664,11.24307529,123.82,123.78,0.91]
[1766023685965,0.68,123.84,123.79,0.71]
[1766023686156,21.00074825,123.85,123.81,0.71]
[1766023686362,10.56307529,123.84,123.81,0.71]
[1766023686558,10.56307529,123.83,123.79,0.71]
[1766023686867,21.00074825,123.85,123.81,0.71]
[1766023687062,21.68074825,123.85,123.81,0.71]
[1766023688386,11.11767296,123.85,123.81,0.71]
[1766023688571,21.68074825,123.85,123.81,0.71]
[1766023689078,21.00074825,123.85,123.81,0.71]
[1766023689247,10.56307529,123.83,123.78,9.00994492]
[1766023689451,11.24307529,123.83,123.79,0.71]
[1766023690146,10.56307529,123.83,123.79,0.71]
[1766023690343,10.43767296,123.85,123.81,10.56307529]
[1766023690565,10.43767296,123.85,123.82,0.72]
[1766023691262,20.10307529,123.87,123.82,0.72]
[1766023691570,10.56307529,123.87,123.82,0.72]
[1766023691762,10.56307529,123.88,123.84,0.67]
[1766023692268,10.56307529,123.87,123.84,0.67]
[1766023692663,0.71,123.88,123.84,10.56307529]
[1766023692854,0.71,123.88,123.84,0.67]
[1766023693055,11.27307529,123.88,123.84,0.67]
[1766023696360,10.56307529,123.88,123.84,0.67]
[1766023696859,30.57074825,123.89,123.84,0.67]
[1766023697379,19.29767296,123.89,123.84,6.51537925]
[1766023697570,0.71,123.88,123.85,0.67]
[1766023697762,7.22537925,123.88,123.85,0.67]
[1766023698472,6.51537925,123.88,123.85,0.67]
[1766023699278,6.51582543,123.88,123.85,0.67]
[1766023700480,6.51582543,123.86,123.82,0.67]
[1766023700783,7.22582543,123.86,123.82,0.67]
[1766023701170,27.36936583,123.89,123.82,0.67]
[1766023701171,7.22582543,123.87,123.82,0.67]
[1766023701375,3.2648077,123.87,123.82,0.67]
[1766023702260,2.5548077,123.87,123.84,0.67]
[1766023702573,10.43767296,123.89,123.84,10.6295406]
[1766023702759,11.4148077,123.89,123.85,0.67]
[1766023703088,8.86,123.89,123.85,0.67]
[1766023703254,12.1248077,123.89,123.85,0.67]
[1766023703949,12.1248077,123.89,123.83,11.36475262]
[1766023703950,3.2648077,123.88,123.83,11.36475262]
[1766023704153,3.2648077,123.88,123.84,0.67]
[1766023706854,2.5548077,123.88,123.84,0.67]
[1766023707225,2.5548077,123.87,123.84,0.67]
[1766023708290,3.2648077,123.87,123.84,0.67]
[1766023708911,2.5548077,123.87,123.84,0.67]
[1766023710020,3.2648077,123.88,123.84,0.67]
[1766023711986,3.2648077,123.87,123.84,0.67]
[1766023712182,3.2648077,123.86,123.82,0.67]
[1766023712599,3.2648077,123.85,123.81,0.67]
[1766023713090,11.14767296,123.86,123.81,0.67]
[1766023713306,2.5548077,123.85,123.81,0.67]
[1766023714202,11.14767296,123.86,123.81,0.67]
[1766023714415,2.5548077,123.85,123.81,0.67]
[1766023714820,13.70248066,123.86,123.81,0.67]
[1766023715421,10.43767296,123.86,123.82,0.67]
[1766023715624,10.43767296,123.86,123.83,0.67]
[1766023716221,13.70248066,123.86,123.8,19.44205009]
[1766023716400,2.5548077,123.85,123.81,0.67]
[1766023716597,2.5548077,123.85,123.82,0.67]
[1766023719733,13.70248066,123.86,123.82,0.67]
[1766023722441,2.5548077,123.86,123.83,0.66]
[1766023723639,3.2448077,123.86,123.83,0.66]
[1766023724440,2.5548077,123.86,123.83,0.66]
[1766023724650,3.2448077,123.86,123.83,0.66]
[1766023726212,2.5548077,123.86,123.83,0.66]
[1766023726518,2.5548077,123.89,123.84,0.66]
[1766023726718,3.2448077,123.89,123.84,0.66]
[1766023727829,2.5548077,123.88,123.85,0.66]
[1766023728834,2.5548077,123.87,123.83,0.66]
[1766023729033,3.2448077,123.88,123.83,0.66]
[1766023729333,3.2448077,123.88,123.84,0.66]
[1766023730606,2.5548077,123.87,123.84,0.66]
[1766023730807,2.5548077,123.86,123.84,0.66]
[1766023731329,3.2448077,123.86,123.83,0.66]
[1766023731537,3.2448077,123.86,123.82,0.66]
[1766023736319,13.68248066,123.83,123.79,0.66]
[1766023736521,13.68248066,123.83,123.78,0.2]
[1766023736522,3.2448077,123.8,123.78,0.2]
[1766023736740,2.5548077,123.79,123.76,0.2]
[1766023736951,3.2448077,123.79,123.76,0.2]
[1766023737746,2.5548077,123.79,123.76,0.2]
[1766023738534,2.5548077,123.79,123.76,0.86]
[1766023738945,3.2448077,123.79,123.76,0.86]
[1766023739240,2.5548077,123.79,123.76,0.86]
[1766023739829,3.2448077,123.8,123.76,0.86]
[1766023740022,3.2448077,123.8,123.77,0.66]
[1766023740436,2.5548077,123.8,123.76,0.2]
[1766023740736,0.69,123.79,123.76,0.86]
[1766023741121,3.2448077,123.79,123.76,0.86]
[1766023741646,2.5548077,123.79,123.76,0.2]
[1766023741825,3.2448077,123.79,123.76,0.86]
[1766023742540,3.2448077,123.8,123.77,0.66]
[1766023742922,0.69,123.8,123.77,0.66]
[1766023743127,3.2448077,123.8,123.77,0.66]
[1766023744540,2.5548077,123.81,123.77,0.66]
[1766023744745,3.2448077,123.81,123.78,0.66]
[1766023745250,3.2448077,123.82,123.78,0.66]
[1766023746761,0.69,123.8,123.77,0.66]
[1766023746931,3.2448077,123.8,123.77,0.66]
[1766023747258,2.5548077,123.8,123.77,0.66]
[1766023748660,3.2448077,123.8,123.77,0.66]
[1766023750034,2.5548077,123.8,123.77,0.66]
[1766023750236,3.2448077,123.81,123.77,0.66]
[1766023752658,3.2448077,123.81,123.77,8.73945792]
[1766023752963,0.71,123.84,123.81,0.67]
[1766023753132,11.14767296,123.84,123.81,0.67]
[1766023753338,0.71,123.82,123.79,0.67]
[1766023756764,2.5548077,123.83,123.79,8.07812632]
[1766023756962,2.5548077,123.83,123.8,0.67]
[1766023756963,3.2648077,123.83,123.8,0.67]
[1766023757268,2.5548077,123.83,123.8,0.67]
[1766023757440,4.70401743,123.83,123.8,0.67]
[1766023758171,0.71,123.82,123.8,0.67]
[1766023759473,3.99401743,123.83,123.8,0.67]
[1766023759660,4.70401743,123.83,123.8,0.67]
[1766023759967,0.71,123.83,123.8,0.67]
[1766023760172,4.70401743,123.83,123.8,0.67]
[1766023760672,4.70401743,123.82,123.79,0.67]
[1766023761858,3.99401743,123.82,123.79,0.67]
[1766023763274,4.70401743,123.81,123.78,0.67]
[1766023764654,0.71,123.81,123.78,0.67]
[1766023766171,15.14262686,123.82,123.79,0.67]
[1766023769546,4.7049539,123.8,123.77,0.67]
[1766023769751,3.9949539,123.8,123.77,0.67]
[1766023769968,0.71,123.79,123.77,0.67]
[1766023770275,0.71,123.79,123.76,8.94993661]
[1766023770484,10.43767296,123.82,123.75,17.86994492]
[1766023770485,10.43767296,123.82,123.75,9.06]
[1766023770785,4.7049539,123.78,123.75,9.73]
[1766023771008,3.9949539,123.78,123.75,9.73]
[1766023771281,0.71,123.77,123.75,9.06]
[1766023771482,0.71,123.77,123.75,9.73]
[1766023771785,4.7049539,123.77,123.75,9.73]
[1766023772076,0.71,123.76,123.75,0.2]
[1766023772276,0.71,123.76,123.74,0.2]
[1766023772277,4.7049539,123.76,123.74,0.2]
[1766023773173,0.71,123.75,123.74,0.2]
[1766023773369,4.7049539,123.75,123.72,8.75255993]
[1766023773556,4.7049539,123.75,123.72,0.67]
[1766023774171,29.05059925,123.82,123.71,0.67]
[1766023774172,4.7049539,123.74,123.71,0.67]
[1766023774378,3.9949539,123.73,123.71,0.67]
[1766023774574,0.71,123.81,123.73,0.67]
[1766023774789,3.9949539,123.77,123.73,0.67]
[1766023774974,14.43262686,123.78,123.75,0.67]
[1766023775181,4.7049539,123.8,123.75,0.67]
[1766023775472,3.9949539,123.8,123.76,0.67]
[1766023775669,4.7049539,123.8,123.76,0.67]
[1766023776669,0.71,123.79,123.76,0.67]
[1766023777186,3.9949539,123.77,123.73,0.67]
[1766023777384,10.43767296,123.81,123.75,0.67]
[1766023777385,3.9949539,123.78,123.75,0.67]
[1766023777566,0.71,123.78,123.75,0.67]
[1766023778989,4.7049539,123.78,123.75,0.67]
[1766023781891,0.69,123.8,123.76,0.66]
[1766023782790,0.69,123.79,123.76,0.66]
[1766023783165,0.69,123.79,123.76,8.74009672]
[1766023785272,4.6849539,123.8,123.77,0.66]
[1766023785971,0.69,123.8,123.77,0.66]
[1766023786166,0.69,123.79,123.76,8.74009672]
[1766023786373,0.69,123.79,123.76,8.08009672]
[1766023786573,0.69,123.79,123.76,8.74009672]
[1766023786793,4.6849539,123.8,123.77,0.66]
[1766023787091,4.6849539,123.8,123.77,8.73944415]
[1766023787289,4.6849539,123.82,123.78,0.66]
[1766023787594,15.12262686,123.83,123.78,0.66]
[1766023788171,15.12262686,123.83,123.8,0.66]
[1766023789591,0.69,123.82,123.79,0.66]
[1766023789790,4.6849539,123.82,123.79,0.66]
[1766023794205,0.69,123.82,123.79,0.66]
[1766023796015,0.69,123.82,123.77,21.66489882]
[1766023796016,0.69,123.8,123.77,0.66]
[1766023796202,0.69,123.79,123.76,0.66]
[1766023796501,0.69,123.78,123.75,9.46994492]
[1766023796686,0.69,123.78,123.75,0.66]
[1766023796892,4.6849539,123.78,123.75,0.66]
[1766023797092,0.69,123.77,123.74,17.6012123]
[1766023797583,0.69,123.77,123.74,9.52]
[1766023797908,3.9949539,123.77,123.74,0.66]
[1766023798086,3.9949539,123.77,123.73,0.66]
[1766023798087,0.69,123.76,123.73,0.66]
[1766023801109,10.43767296,123.8,123.73,0.66]
[1766023801407,0.69,123.75,123.73,0.66]
[1766023801593,4.6849539,123.76,123.73,0.66]
[1766023803202,0.69,123.76,123.73,0.66]
[1766023804711,4.6849539,123.77,123.74,0.66]
[1766023804918,0.69,123.74,123.7,0.66]
[1766023805211,0.69,123.73,123.7,8.74364767]
[1766023805515,3.9949539,123.74,123.7,8.74364767]
[1766023805516,0.69,123.74,123.71,0.66]
[1766023806290,3.9949539,123.74,123.7,8.08364767]
[1766023806608,3.9949539,123.73,123.7,0.66]
[1766023806799,4.6849539,123.73,123.7,0.66]
[1766023807307,0.69,123.73,123.7,0.66]
[1766023808220,0.69,123.75,123.7,0.66]
[1766023808395,0.69,123.73,123.7,0.66]
[1766023809197,0.40714886,123.73,123.7,0.66]
[1766023811902,3.9949539,123.72,123.69,0.2]
[1766023812200,4.6749539,123.72,123.69,0.88]
[1766023812405,0.68,123.72,123.69,0.88]
[1766023813303,11.11767296,123.74,123.7,0.68]
[1766023813615,0.68,123.73,123.7,0.68]
[1766023814600,8.86,123.77,123.71,0.68]
[1766023814601,4.6749539,123.75,123.71,0.68]
[1766023814802,0.68,123.74,123.71,0.68]
[1766023815517,0.68,123.73,123.7,0.68]
[1766023815823,0.68,123.73,123.7,8.76393656]
[1766023816518,0.68,123.73,123.69,4.1949539]
[1766023816709,0.68,123.72,123.69,0.88]
[1766023819097,10.43767296,123.76,123.69,0.88]
[1766023819098,0.68,123.77,123.72,0.68]
[1766023819318,0.68,123.76,123.73,0.68]
[1766023819505,8.86,123.8,123.73,0.68]
[1766023819506,3.24031039,123.77,123.73,0.68]
[1766023819706,13.67798335,123.77,123.73,0.68]
[1766023820397,10.43767296,123.77,123.74,0.68]
[1766023820826,0.68,123.77,123.74,0.68]
[1766023822698,3.24031039,123.77,123.74,0.68]
[1766023823211,0.68,123.77,123.74,0.68]
[1766023825815,0.68,123.76,123.73,8.76176608]
[1766023826205,3.24031039,123.77,123.74,0.68]
[1766023827041,0.68,123.77,123.74,0.68]
[1766023827411,0.68,123.77,123.74,8.76140905]
[1766023827607,0.68,123.77,123.74,0.68]
[1766023827831,13.08548648,123.81,123.75,0.68]
[1766023827832,3.24031039,123.79,123.75,0.68]
[1766023828034,13.67798335,123.8,123.75,0.68]
[1766023828519,13.67798335,123.8,123.75,3.24031039]
[1766023828714,13.67798335,123.8,123.76,0.68]
[1766023828911,0.68,123.79,123.76,0.68]
[1766023830035,3.24031039,123.79,123.76,0.68]
[1766023830340,0.68,123.78,123.75,9.48994492]
[1766023830717,3.24031039,123.79,123.76,0.68]
[1766023832310,0.68,123.79,123.76,0.68]
[1766023833035,2.56031039,123.83,123.78,0.68]
[1766023833235,13.67798335,123.83,123.79,0.68]
[1766023833413,13.67380948,123.83,123.79,0.68]
[1766023834534,0.68,123.82,123.79,0.68]
[1766023835312,13.67380948,123.83,123.79,0.68]
[1766023836006,2.55613652,123.84,123.8,0.68]
[1766023836210,0.68,123.85,123.81,0.68]
[1766023836540,3.23613652,123.84,123.81,0.68]
[1766023837651,2.55613652,123.85,123.82,0.68]
[1766023837814,12.99380948,123.86,123.82,0.68]
[1766023838114,13.67380948,123.86,123.82,0.68]
[1766023839830,0.68,123.85,123.82,0.68]
[1766023841836,12.99380948,123.86,123.82,0.68]
[1766023842042,13.64380948,123.86,123.82,8.07613821]
[1766023842339,10.43767296,123.86,123.83,0.72]
[1766023842712,11.08767296,123.86,123.83,0.72]
[1766023843518,0.1,123.89,123.84,0.72]
[1766023843717,0.65,123.88,123.85,0.72]
[1766023843927,3.20613652,123.88,123.85,0.72]
[1766023848247,0.65,123.88,123.85,0.72]
[1766023850628,0.75,123.89,123.86,0.72]
[1766023851349,0.75,123.89,123.85,0.72]
[1766023851842,0.65,123.88,123.85,0.72]
[1766023854642,0.1,123.89,123.85,0.72]
[1766023854946,0.75,123.89,123.85,0.72]
[1766023855749,0.1,123.89,123.86,0.72]
[1766023856062,0.1,123.92,123.87,0.72]
[1766023856235,0.65,123.91,123.87,0.72]
[1766023856433,0.65,123.9,123.86,9.52994492]
[1766023856634,0.65,123.9,123.87,0.72]
[1766023857238,0.65,123.9,123.86,9.52994492]
[1766023857440,0.65,123.89,123.86,9.52994492]
[1766023857840,0.65,123.88,123.85,17.65413457]
[1766023858433,0.65,123.88,123.85,9.58]
[1766023858658,3.20613652,123.88,123.85,9.58]
[1766023858858,2.55613652,123.88,123.85,8.86]
[1766023859152,2.55613652,123.86,123.82,8.86]
[1766023859358,3.20613652,123.85,123.82,9.58]
[1766023859758,0.65,123.85,123.82,9.58]
[1766023860558,3.20613652,123.85,123.82,9.58]
[1766023860942,3.20613652,123.85,123.82,0.72]
[1766023861332,10.43767296,123.89,123.81,25.74656309]
[1766023861333,3.20613652,123.84,123.81,0.72]
[1766023861537,2.55613652,123.83,123.81,9.58]
[1766023861767,3.20613652,123.84,123.81,8.79677468]
[1766023862853,3.20613652,123.84,123.82,8.07613204]
[1766023863055,2.55613652,123.85,123.82,8.07613204]
[1766023863259,11.08767296,123.87,123.84,8.0749354]
[1766023863444,3.20613652,123.86,123.83,8.79529272]
[1766023864657,3.20613652,123.85,123.82,17.65593482]
[1766023865344,3.20613652,123.85,123.83,8.07548612]
[1766023865541,2.55613652,123.85,123.83,8.07548612]
[1766023865840,3.20613652,123.85,123.83,8.07548612]
[1766023866859,3.20613652,123.86,123.83,8.79548612]
[1766023867062,3.20613652,123.87,123.84,0.72]
[1766023867366,3.20613652,123.87,123.84,8.79486659]
[1766023867771,3.20613652,123.87,123.84,0.72]
[1766023868062,2.55613652,123.87,123.83,8.79530572]
[1766023868244,3.20613652,123.86,123.83,8.79530572]
[1766023869473,0.65,123.86,123.83,8.79533327]
[1766023869684,2.55613652,123.87,123.84,0.72]
[1766023869843,3.20613652,123.9,123.86,0.72]
[1766023870278,0.65,123.9,123.86,0.72]
[1766023870889,3.21613652,123.91,123.87,8.80994492]
[1766023871047,2.65613652,123.92,123.88,0.71]
[1766023871252,3.21613652,123.91,123.88,8.78181426]
[1766023871767,3.21613652,123.91,123.88,8.07181426]
[1766023872871,0.77,123.92,123.89,9.49994492]
[1766023873079,0.1,123.92,123.89,9.49994492]
[1766023873257,0.1,123.92,123.9,8.07102502]
[1766023873464,0.1,123.92,123.9,8.76102502]
[1766023878073,0.67,123.95,123.92,0.69]
[1766023878278,0.67,123.95,123.91,17.66994492]
[1766023878580,0.67,123.95,123.91,18.35994492]
[1766023879282,0.67,123.95,123.92,0.69]
[1766023879579,0.67,123.95,123.92,8.75932642]
[1766023880282,4.08576228,123.96,123.93,0.69]
[1766023880283,0.1,123.96,123.93,0.69]
[1766023880462,0.77,123.96,123.92,12.7450887]
[1766023880655,0.77,123.96,123.92,8.75932642]
[1766023881282,0.77,123.96,123.93,0.69]
[1766023881456,0.1,123.96,123.93,8.75843808]
[1766023881885,0.77,123.96,123.93,8.75843808]
[1766023883058,0.77,123.96,123.93,0.69]
[1766023883265,0.77,123.96,123.92,8.75943271]
[1766023883776,0.77,123.96,123.92,8.06943271]
[1766023883955,0.77,123.96,123.92,8.75943271]
[1766023884156,0.77,123.96,123.93,0.69]
[1766023885580,0.77,123.96,123.93,4.67576228]
[1766023885783,0.77,123.96,123.93,0.69]
[1766023887761,0.77,123.96,123.92,9.55]
[1766023887977,0.67,123.94,123.92,8.86]
[1766023888175,0.67,123.94,123.91,17.5700186]
[1766023888375,0.67,123.94,123.91,26.4300186]
[1766023889184,0.67,123.94,123.91,25.7400186]
[1766023889658,0.67,123.94,123.91,26.4300186]
[1766023889858,0.67,123.93,123.89,8.76123508]
[1766023890089,0.67,123.93,123.89,17.62123508]
[1766023890487,0.67,123.93,123.9,0.69]
[1766023890890,0.67,123.95,123.92,0.69]
[1766023891126,0.1,123.96,123.93,3.98576228]
[1766023891384,4.31883199,124.01,123.97,8.80994492]
[1766023891385,0.77,124.01,123.97,8.80994492]
[1766023891588,0.1,124.01,123.98,4.67576228]
[1766023892169,0.1,124.01,123.98,0.69]
[1766023892366,0.1,124.01,123.98,4.67576228]
[1766023892968,0.1,124.01,123.97,8.80994492]
[1766023892969,0.77,124.04,124.0,13.4857072]
[1766023893175,0.77,124.04,124.0,17.56402018]
[1766023893370,0.77,124.04,124.0,21.54978246]
[1766023893681,0.77,124.04,124.0,17.56402018]
[1766023893884,0.77,124.04,124.0,9.49994492]
[1766023894381,0.77,124.04,124.0,13.4857072]
[1766023894570,0.77,124.04,124.0,21.55021175]
[1766023894769,3.98576228,124.02,123.98,8.86]
[1766023894978,0.67,124.01,123.98,8.86]
[1766023895180,0.67,124.01,123.97,21.55213087]
[1766023895380,0.67,124.01,123.97,8.86]
[1766023895582,0.67,123.99,123.95,30.41307747]
[1766023897082,0.67,124.01,123.97,4.67576228]
[1766023897282,0.67,124.01,123.98,0.69]
[1766023897483,0.67,124.01,123.97,4.67576228]
[1766023897799,0.67,124.02,123.98,22.3257072]
[1766023898696,0.67,124.01,123.98,8.84]
[1766023899087,0.67,124.01,123.97,3.98576228]
[1766023899288,0.67,124.01,123.97,8.06636494]
[1766023899502,0.67,124.01,123.97,12.74212722]
[1766023900500,0.67,124.01,123.97,4.67196185]
[1766023900701,0.67,124.01,123.98,3.98196185]
[1766023900907,0.67,124.01,123.97,12.73842611]
[1766023901786,0.67,124.01,123.97,8.75646426]
[1766023902079,0.67,124.01,123.97,21.54837103]
[1766023902483,0.71,124.02,123.99,0.69]
[1766023902888,0.71,124.02,123.99,9.53]
[1766023903098,0.71,124.02,123.99,8.84]
[1766023903680,0.71,124.02,123.98,13.48190677]
[1766023903880,0.71,124.02,123.98,22.32190677]
[1766023904315,0.71,124.02,123.98,30.38722982]
[1766023904607,0.71,124.02,123.98,16.87526797]
[1766023904902,0.71,124.01,123.98,8.84]
[1766023905406,0.71,124.01,123.98,16.90574346]
[1766023905704,0.71,124.01,123.98,17.59574346]
[1766023906202,14.41963481,124.03,123.99,8.80994492]
[1766023906407,0.71,124.02,123.99,9.49994492]
[1766023907103,0.71,124.02,123.98,16.90574346]
[1766023907307,0.71,124.02,123.98,17.59574346]
[1766023907508,10.43767296,124.03,124.0,0.69]
[1766023907807,11.14767296,124.03,124.0,0.69]
[1766023908389,11.14767296,124.03,124.0,8.06436602]
[1766023909105,0.81,124.04,124.01,0.69]
[1766023909315,0.81,124.04,124.0,12.73632787]
[1766023910011,0.81,124.04,124.0,8.75436602]
[1766023910210,0.71,124.03,123.99,0.69]
[1766023910515,0.71,124.02,123.99,8.84]
[1766023910807,0.71,124.0,123.98,8.06560431]
[1766023911021,0.71,124.02,123.98,16.90560431]
[1766023911307,0.71,124.02,123.98,21.57756616]
[1766023912212,0.71,124.02,123.99,4.67196185]
[1766023912517,0.71,124.03,124.0,13.48190677]
[1766023913004,0.71,124.03,124.0,8.80994492]
[1766023913582,0.71,124.03,124.0,9.49994492]
[1766023914400,0.71,124.03,124.0,17.564127]
[1766023914599,4.08196185,124.04,123.99,12.73682098]
[1766023914818,0.71,124.02,123.99,8.06485913]
[1766023914998,0.71,124.02,123.99,17.59485913]
[1766023915197,0.71,124.03,123.99,17.59485913]
[1766023915415,0.71,124.03,123.99,8.75485913]
[1766023915711,0.71,124.02,123.99,8.84]
[1766023916415,0.71,124.02,123.99,9.53]